fUSD/lending_fUSD_20250127
["ID","MTS","AMOUNT","RATE_DAILY","PERIOD"]
[350533613,1737948660252,-500.0,0.00010958,2]
[350533614,1737948660262,-500.0,0.00010958,2]
[350533615,1737948660271,-500.0,0.00010958,2]
[350533616,1737948660280,-500.0,0.00010958,2]
[350533617,1737948660289,-500.0,0.00010958,2]
[350533618,1737948660299,-500.0,0.00010958,2]
[350533619,1737948660308,-500.0,0.00010958,2]
[350533620,1737948660318,-408.03640597,0.00010958,2]
[350533621,1737948660327,-507.48037648,0.00010958,2]
[350533622,1737948660337,-500.0,0.00010958,2]
[350533623,1737948660346,-490.34086481,0.00010958,2]
[350533624,1737948660356,-502.92003478,0.00010958,2]
[350533625,1737948660365,-1000.0,0.00010958,2]
[350533626,1737948660375,-1000.0,0.00010958,2]
[350533627,1737948660384,-1000.0,0.00010958,2]
[350533628,1737948660395,-500.0,0.00010958,2]
[350533629,1737948660405,-500.0,0.00010958,2]
[350533630,1737948660415,-1035.00037058,0.00010958,2]
[350533631,1737948660424,-500.0,0.00010958,2]
[350533632,1737948660435,-500.0,0.00010958,2]
[350533633,1737948660445,-500.0,0.00010958,2]
[350533634,1737948660454,-500.0,0.00010958,2]
[350533635,1737948660464,-500.0,0.00010958,2]
[350533636,1737948660476,-502.75928541,0.00010958,2]
[350533637,1737948660486,-500.0,0.00010958,2]
[350533638,1737948660496,-500.0,0.00010958,2]
[350533639,1737948660505,-500.0,0.00010958,2]
[350533640,1737948660515,-500.0,0.00010958,2]
[350533641,1737948660525,-500.0,0.00010958,2]
[350533642,1737948660535,-399.77127467,0.00010958,2]
[350533643,1737948660545,-500.0,0.00010958,2]
[350533644,1737948660554,-561.70213822,0.00010958,2]
[350533645,1737948660563,-500.0,0.00010958,2]
[350533646,1737948660573,-500.0,0.00010958,2]
[350533647,1737948660582,-411.25399424,0.00010958,2]
[350533648,1737948660591,-500.0,0.00010958,2]
[350533649,1737948660601,-505.34031768,0.00010958,2]
[350533650,1737948660611,-500.0,0.00010958,2]
[350533651,1737948660620,-500.0,0.00010958,2]
[350533652,1737948660630,-172.17,0.00010958,2]
[350533653,1737948660639,-500.0,0.00010958,2]
[350533654,1737948660648,-500.0,0.00010958,2]
[350533655,1737948660658,-500.0,0.00010958,2]
[350533656,1737948660667,-513.13864094,0.00010958,2]
[350533657,1737948660676,-504.42946449,0.00010958,2]
[350533658,1737948660685,-500.0,0.00010958,2]
[350533659,1737948660695,-500.0,0.00010958,2]
[350533660,1737948660704,-500.0,0.00010958,2]
[350533661,1737948660713,-500.0,0.00010958,2]
[350533662,1737948660722,-500.0,0.00010958,2]
[350533663,1737948660731,-500.0,0.00010958,2]
[350533664,1737948660741,-500.0,0.00010958,2]
[350533665,1737948660750,-505.97702574,0.00010958,2]
[350533666,1737948660759,-500.0,0.00010958,2]
[350533667,1737948660768,-500.0,0.00010958,2]
[350533668,1737948660778,-518.77054842,0.00010958,2]
[350533669,1737948660788,-500.0,0.00010958,2]
[350533670,1737948660798,-500.0,0.00010958,2]
[350533671,1737948660808,-500.0,0.00010958,2]
[350533672,1737948660817,-500.0,0.00010958,2]
[350533673,1737948660826,-500.0,0.00010958,2]
[350533674,1737948660835,-500.0,0.00010958,2]
[350533675,1737948660844,-500.0,0.00010958,2]
[350533676,1737948660854,-500.0,0.00010958,2]
[350533677,1737948660864,-500.0,0.00010958,2]
[350533678,1737948660873,-500.0,0.00010958,2]
[350533679,1737948660883,-500.0,0.00010958,2]
[350533680,1737948660892,-500.0,0.00010958,2]
[350533681,1737948660901,-500.0,0.00010958,2]
[350533682,1737948660910,-500.0,0.00010958,2]
[350533683,1737948660920,-563.24758831,0.00010958,2]
[350533684,1737948660931,-500.0,0.00010958,2]
[350533685,1737948660941,-500.0,0.00010958,2]
[350533686,1737948660951,-500.0,0.00010958,2]
[350533687,1737948660960,-500.0,0.00010958,2]
[350533688,1737948660970,-500.0,0.00010958,2]
[350533689,1737948660979,-500.0,0.00010958,2]
[350533690,1737948660988,-521.53865268,0.00010958,2]
[350533691,1737948660997,-500.0,0.00010958,2]
[350533692,1737948661007,-500.0,0.00010958,2]
[350533693,1737948661016,-500.0,0.00010958,2]
[350533694,1737948661025,-500.0,0.00010958,2]
[350533695,1737948661034,-604.35859778,0.00010958,2]
[350533696,1737948661043,-500.0,0.00010958,2]
[350533697,1737948661052,-500.0,0.00010958,2]
[350533698,1737948661061,-500.0,0.00010958,2]
[350533699,1737948661070,-500.0,0.00010958,2]
[350533700,1737948661079,-500.0,0.00010958,2]
[350533701,1737948661089,-287.0597734,0.00010958,2]
[350533702,1737948661099,-645.66712648,0.00010958,2]
[350533703,1737948661109,-500.0,0.00010958,2]
[350533704,1737948661118,-500.0,0.00010958,2]
[350533705,1737948661127,-500.0,0.00010958,2]
[350533706,1737948661137,-500.0,0.00010958,2]
[350533707,1737948661146,-514.21808308,0.00010958,2]
[350533708,1737948661155,-500.0,0.00010958,2]
[350533709,1737948661165,-500.0,0.00010958,2]
[350533710,1737948661174,-524.30528994,0.00010958,2]
[350533711,1737948661185,-500.0,0.00010958,2]
[350533712,1737948661195,-497.165442,0.00010958,2]
[350533713,1737948661204,-500.0,0.00010958,2]
[350533714,1737948661213,-500.0,0.00010958,2]
[350533715,1737948661223,-500.0,0.00010958,2]
[350533716,1737948661232,-500.0,0.00010958,2]
[350533717,1737948661242,-318.909365,0.00010958,2]
[350533718,1737948661251,-500.0,0.00010958,2]
[350533719,1737948661261,-318.909365,0.00010958,2]
[350533720,1737948661271,-500.0,0.00010958,2]
[350533721,1737948661281,-500.0,0.00010958,2]
[350533722,1737948661291,-289.00504655,0.00010958,2]
[350533723,1737948661300,-500.0,0.00010958,2]
[350533724,1737948661309,-318.909365,0.00010958,2]
[350533725,1737948661319,-500.0,0.00010958,2]
[350533726,1737948661328,-500.0,0.00010958,2]
[350533727,1737948661337,-318.909365,0.00010958,2]
[350533728,1737948661346,-500.0,0.00010958,2]
[350533729,1737948661356,-500.0,0.00010958,2]
[350533730,1737948661365,-318.909365,0.00010958,2]
[350533731,1737948661376,-500.0,0.00010958,2]
[350533732,1737948661385,-500.0,0.00010958,2]
[350533733,1737948661397,-318.909365,0.00010958,2]
[350533734,1737948661406,-306.47182331,0.00010958,2]
[350533735,1737948661415,-500.0,0.00010958,2]
[350533736,1737948661424,-318.909365,0.00010958,2]
[350533737,1737948661436,-500.0,0.00010958,2]
[350533738,1737948661446,-318.909365,0.00010958,2]
[350533739,1737948661455,-500.0,0.00010958,2]
[350533740,1737948661464,-509.55202618,0.00010958,2]
[350533741,1737948661473,-500.0,0.00010958,2]
[350533742,1737948661483,-500.0,0.00010958,2]
[350533743,1737948661493,-318.909365,0.00010958,2]
[350533744,1737948661502,-500.0,0.00010958,2]
[350533745,1737948661512,-500.0,0.00010958,2]
[350533746,1737948661521,-536.20171025,0.00010958,2]
[350533747,1737948661531,-500.0,0.00010958,2]
[350533748,1737948661540,-500.0,0.00010958,2]
[350533749,1737948661550,-500.0,0.00010958,2]
[350533750,1737948661559,-500.0,0.00010958,2]
[350533751,1737948661569,-500.0,0.00010958,2]
[350533752,1737948661579,-500.0,0.00010958,2]
[350533753,1737948661588,-500.0,0.00010958,2]
[350533754,1737948661597,-647.38889424,0.00010958,2]
[350533755,1737948661607,-500.0,0.00010958,2]
[350533756,1737948661616,-500.0,0.00010958,2]
[350533757,1737948661625,-500.0,0.00010958,2]
[350533758,1737948661635,-500.0,0.00010958,2]
[350533759,1737948661644,-524.72917893,0.00010958,2]
[350533760,1737948661653,-561.43118983,0.00010958,2]
[350533761,1737948661663,-500.0,0.00010958,2]
[350533762,1737948661673,-500.0,0.00010958,2]
[350533763,1737948661684,-528.39930559,0.00010958,2]
[350533764,1737948661693,-500.0,0.00010958,2]
[350533765,1737948661703,-485.0,0.00010958,2]
[350533766,1737948661712,-500.0,0.00010958,2]
[350533767,1737948661722,-500.0,0.00010958,2]
[350533768,1737948661732,-500.0,0.00010958,2]
[350533769,1737948661742,-500.0,0.00010958,2]
[350533770,1737948661752,-500.0,0.00010958,2]
[350533771,1737948661763,-500.0,0.00010958,2]
[350533772,1737948661773,-500.0,0.00010958,2]
[350533773,1737948661783,-500.0,0.00010958,2]
[350533774,1737948661792,-500.0,0.00010958,2]
[350533775,1737948661803,-500.0,0.00010958,2]
[350533776,1737948661813,-500.0,0.00010958,2]
[350533777,1737948661823,-500.0,0.00010958,2]
[350533778,1737948661832,-500.0,0.00010958,2]
[350533779,1737948661841,-500.0,0.00010958,2]
[350533780,1737948661850,-500.0,0.00010958,2]
[350533781,1737948661860,-500.0,0.00010958,2]
[350533782,1737948661869,-500.0,0.00010958,2]
[350533783,1737948661878,-500.0,0.00010958,2]
[350533784,1737948661887,-500.0,0.00010958,2]
[350533785,1737948661896,-500.0,0.00010958,2]
[350533786,1737948661905,-500.0,0.00010958,2]
[350533787,1737948661915,-509.20341919,0.00010958,2]
[350533788,1737948661973,-500.0,0.00010958,2]
[350533789,1737948661983,-500.0,0.00010958,2]
[350533790,1737948661992,-500.0,0.00010958,2]
[350533791,1737948662001,-500.0,0.00010958,2]
[350533792,1737948662010,-331.63901322,0.00010958,2]
[350533793,1737948662019,-215.45151136,0.00010958,2]
[350533794,1737948662028,-500.0,0.00010958,2]
[350533795,1737948662038,-508.85626999,0.00010958,2]
[350533796,1737948662047,-500.0,0.00010958,2]
[350533797,1737948662056,-500.0,0.00010958,2]
[350533798,1737948662065,-500.0,0.00010958,2]
[350533799,1737948662075,-512.7818679,0.00010958,2]
[350533800,1737948662084,-500.0,0.00010958,2]
[350533801,1737948662093,-500.0,0.00010958,2]
[350533802,1737948662102,-500.0,0.00010958,2]
[350533803,1737948662112,-500.0,0.00010958,2]
[350533804,1737948662121,-500.0,0.00010958,2]
[350533805,1737948662130,-500.0,0.00010958,2]
[350533806,1737948662140,-525.24521387,0.00010958,2]
[350533807,1737948662149,-500.0,0.00010958,2]
[350533808,1737948662157,-500.0,0.00010958,2]
[350533809,1737948662167,-500.0,0.00010958,2]
[350533810,1737948662176,-500.0,0.00010958,2]
[350533811,1737948662186,-500.0,0.00010958,2]
[350533812,1737948662195,-500.0,0.00010958,2]
[350533813,1737948662204,-500.0,0.00010958,2]
[350533814,1737948662213,-500.0,0.00010958,2]
[350533815,1737948662222,-500.0,0.00010958,2]
[350533816,1737948662231,-500.0,0.00010958,2]
[350533817,1737948662240,-500.0,0.00010958,2]
[350533818,1737948662250,-538.21506102,0.00010958,2]
[350533819,1737948662259,-500.0,0.00010958,2]
[350533820,1737948662268,-500.0,0.00010958,2]
[350533821,1737948662277,-500.0,0.00010958,2]
[350533822,1737948662286,-500.0,0.00010958,2]
[350533823,1737948662295,-500.0,0.00010958,2]
[350533824,1737948662304,-500.0,0.00010958,2]
[350533825,1737948662313,-500.0,0.00010958,2]
[350533826,1737948662322,-585.09040504,0.00010958,2]
[350533827,1737948662332,-500.0,0.00010958,2]
[350533828,1737948662341,-500.0,0.00010958,2]
[350533829,1737948662350,-500.0,0.00010958,2]
[350533830,1737948662360,-505.8908724,0.00010958,2]
[350533831,1737948662369,-500.0,0.00010958,2]
[350533832,1737948662378,-500.0,0.00010958,2]
[350533833,1737948662387,-571.29815915,0.00010958,2]
[350533834,1737948662399,-500.0,0.00010958,2]
[350533835,1737948662408,-500.0,0.00010958,2]
[350533836,1737948662417,-500.0,0.00010958,2]
[350533837,1737948662426,-500.0,0.00010958,2]
[350533838,1737948662437,-524.84284835,0.00010958,2]
[350533839,1737948662446,-500.0,0.00010958,2]
[350533840,1737948662455,-506.89979965,0.00010958,2]
[350533841,1737948662464,-500.0,0.00010958,2]
[350533842,1737948662475,-500.0,0.00010958,2]
[350533843,1737948662484,-500.0,0.00010958,2]
[350533844,1737948662493,-500.0,0.00010958,2]
[350533845,1737948662502,-500.0,0.00010958,2]
[350533846,1737948662511,-500.0,0.00010958,2]
[350533847,1737948662520,-500.0,0.00010958,2]
[350533848,1737948662530,-501.4699586,0.00010958,2]
[350533849,1737948662538,-500.0,0.00010958,2]
[350533850,1737948662547,-500.0,0.00010958,2]
[350533851,1737948662557,-500.0,0.00010958,2]
[350533852,1737948662566,-413.71,0.00010958,2]
[350533853,1737948662575,-500.0,0.00010958,2]
[350533854,1737948662584,-500.0,0.00010958,2]
[350533855,1737948662593,-500.0,0.00010958,2]
[350533856,1737948662602,-500.0,0.00010958,2]
[350533857,1737948662611,-539.99785672,0.00010958,2]
[350533858,1737948662621,-500.0,0.00010958,2]
[350533859,1737948662630,-500.0,0.00010958,2]
[350533860,1737948662640,-645.06,0.00010958,2]
[350533861,1737948662649,-500.0,0.00010958,2]
[350533862,1737948662659,-645.06,0.00010958,2]
[350533863,1737948662668,-500.0,0.00010958,2]
[350533864,1737948662678,-645.06,0.00010958,2]
[350533865,1737948662688,-500.0,0.00010958,2]
[350533866,1737948662697,-645.06,0.00010958,2]
[350533867,1737948662707,-500.0,0.00010958,2]
[350533868,1737948662716,-645.06,0.00010958,2]
[350533869,1737948662726,-500.0,0.00010958,2]
[350533870,1737948662735,-645.06,0.00010958,2]
[350533871,1737948662745,-500.0,0.00010958,2]
[350533872,1737948662754,-500.0,0.00010958,2]
[350533873,1737948662763,-645.06,0.00010958,2]
[350533874,1737948662773,-500.0,0.00010958,2]
[350533875,1737948662782,-645.06,0.00010958,2]
[350533876,1737948662792,-500.0,0.00010958,2]
[350533877,1737948662801,-500.0,0.00010958,2]
[350533878,1737948662810,-500.0,0.00010958,2]
[350533879,1737948662820,-500.0,0.00010958,2]
[350533880,1737948662829,-500.0,0.00010958,2]
[350533881,1737948662838,-500.0,0.00010958,2]
[350533882,1737948662847,-500.0,0.00010958,2]
[350533883,1737948662857,-500.0,0.00010958,2]
[350533884,1737948662866,-504.21156813,0.00010958,2]
[350533885,1737948662876,-500.0,0.00010958,2]
[350533886,1737948662885,-500.0,0.00010958,2]
[350533887,1737948662895,-500.0,0.00010958,2]
[350533888,1737948662904,-508.51590585,0.00010958,2]
[350533889,1737948662913,-500.0,0.00010958,2]
[350533890,1737948662923,-500.0,0.00010958,2]
[350533891,1737948662933,-500.0,0.00010958,2]
[350533892,1737948662942,-387.94592568,0.00010958,2]
[350533893,1737948662952,-500.0,0.00010958,2]
[350533894,1737948662962,-500.0,0.00010958,2]
[350533895,1737948662971,-556.68691609,0.00010958,2]
[350533896,1737948662980,-500.0,0.00010958,2]
[350533897,1737948662989,-519.17,0.00010958,2]
[350533898,1737948662998,-500.0,0.00010958,2]
[350533899,1737948663009,-500.0,0.00010958,2]
[350533900,1737948663019,-347.0823541,0.00010958,2]
[350533901,1737948663029,-500.0,0.00010958,2]
[350533902,1737948663039,-500.0,0.00010958,2]
[350533903,1737948663048,-500.0,0.00010958,2]
[350533904,1737948663057,-500.0,0.00010958,2]
[350533905,1737948663067,-436.81056325,0.00010958,2]
[350533906,1737948663076,-500.0,0.00010958,2]
[350533907,1737948663086,-500.0,0.00010958,2]
[350533908,1737948663095,-260.01462781,0.00010958,2]
[350533909,1737948663104,-500.0,0.00010958,2]
[350533910,1737948663114,-501.98628512,0.00010958,2]
[350533911,1737948663123,-500.0,0.00010958,2]
[350533912,1737948663132,-502.54670353,0.00010958,2]
[350533913,1737948663142,-500.0,0.00010958,2]
[350533914,1737948663151,-500.0,0.00010958,2]
[350533915,1737948663160,-500.0,0.00010958,2]
[350533916,1737948663169,-500.0,0.00010958,2]
[350533917,1737948663179,-500.0,0.00010958,2]
[350533918,1737948663188,-500.0,0.00010958,2]
[350533919,1737948663197,-500.0,0.00010958,2]
[350533920,1737948663207,-500.0,0.00010958,2]
[350533921,1737948663216,-500.0,0.00010958,2]
[350533922,1737948663226,-500.0,0.00010958,2]
[350533923,1737948663235,-500.0,0.00010958,2]
[350533924,1737948663245,-261.75724007,0.00010958,2]
[350533925,1737948663254,-500.0,0.00010958,2]
[350533926,1737948663264,-159.72,0.00010958,2]
[350533927,1737948663274,-500.0,0.00010958,2]
[350533928,1737948663283,-500.0,0.00010958,2]
[350533929,1737948663293,-414.279767,0.00010958,2]
[350533930,1737948663303,-277.29119546,0.00010958,2]
[350533931,1737948663313,-503.65528938,0.00010958,2]
[350533932,1737948663323,-500.0,0.00010958,2]
[350533933,1737948663332,-500.0,0.00010958,2]
[350533934,1737948663342,-500.0,0.00010958,2]
[350533935,1737948663351,-500.0,0.00010958,2]
[350533936,1737948663360,-500.0,0.00010958,2]
[350533937,1737948663370,-500.0,0.00010958,2]
[350533938,1737948663380,-500.0,0.00010958,2]
[350533939,1737948663390,-500.0,0.00010958,2]
[350533940,1737948663403,-500.0,0.00010958,2]
[350533941,1737948663413,-500.0,0.00010958,2]
[350533942,1737948663422,-500.0,0.00010958,2]
[350533943,1737948663434,-500.0,0.00010958,2]
[350533944,1737948663443,-500.0,0.00010958,2]
[350533945,1737948663453,-500.0,0.00010958,2]
[350533946,1737948663463,-500.0,0.00010958,2]
[350533947,1737948663472,-500.0,0.00010958,2]
[350533948,1737948663481,-500.0,0.00010958,2]
[350533949,1737948663489,-502.57173747,0.00010958,2]
[350533950,1737948663498,-500.0,0.00010958,2]
[350533951,1737948663507,-500.0,0.00010958,2]
[350533952,1737948663517,-500.0,0.00010958,2]
[350533953,1737948663526,-500.0,0.00010958,2]
[350533954,1737948663536,-500.0,0.00010958,2]
[350533955,1737948663546,-505.24432538,0.00010958,2]
[350533956,1737948663558,-500.0,0.00010958,2]
[350533957,1737948663568,-500.0,0.00010958,2]
[350533958,1737948663578,-500.0,0.00010958,2]
[350533959,1737948663588,-500.0,0.00010958,2]
[350533960,1737948663599,-500.0,0.00010958,2]
[350533961,1737948663608,-500.0,0.00010958,2]
[350533962,1737948663618,-500.0,0.00010958,2]
[350533963,1737948663628,-500.0,0.00010958,2]
[350533964,1737948663638,-500.0,0.00010958,2]
[350533965,1737948663647,-616.26585331,0.00010958,2]
[350533966,1737948663657,-500.0,0.00010958,2]
[350533967,1737948663669,-500.0,0.00010958,2]
[350533968,1737948663682,-500.0,0.00010958,2]
[350533969,1737948663695,-500.0,0.00010958,2]
[350533970,1737948663706,-500.0,0.00010958,2]
[350533971,1737948663716,-536.20116112,0.00010958,2]
[350533972,1737948663727,-500.0,0.00010958,2]
[350533973,1737948663738,-500.0,0.00010958,2]
[350533974,1737948663749,-500.0,0.00010958,2]
[350533975,1737948663760,-500.0,0.00010958,2]
[350533976,1737948663771,-500.0,0.00010958,2]
[350533977,1737948663782,-216.181539,0.00010958,2]
[350533978,1737948663792,-500.0,0.00010958,2]
[350533979,1737948663805,-500.0,0.00010958,2]
[350533980,1737948663817,-500.0,0.00010958,2]
[350533981,1737948663828,-216.181539,0.00010958,2]
[350533982,1737948663840,-210.249763,0.00010958,2]
[350533983,1737948663851,-500.0,0.00010958,2]
[350533984,1737948663862,-500.0,0.00010958,2]
[350533985,1737948663872,-216.181539,0.00010958,2]
[350533986,1737948663883,-216.181539,0.00010958,2]
[350533987,1737948663894,-500.0,0.00010958,2]
[350533988,1737948663904,-500.0,0.00010958,2]
[350533989,1737948663916,-500.0,0.00010958,2]
[350533990,1737948663927,-216.181539,0.00010958,2]
[350533991,1737948663939,-500.0,0.00010958,2]
[350533992,1737948663950,-500.0,0.00010958,2]
[350533993,1737948663961,-291.66167262,0.00010958,2]
[350533994,1737948663972,-500.0,0.00010958,2]
[350533995,1737948663983,-216.181539,0.00010958,2]
[350533996,1737948663994,-500.0,0.00010958,2]
[350533997,1737948664004,-500.0,0.00010958,2]
[350533998,1737948664014,-216.181539,0.00010958,2]
[350533999,1737948664025,-619.38625818,0.00010958,2]
[350534000,1737948664035,-627.5120893,0.00010958,2]
[350534001,1737948664045,-500.85358849,0.00010958,2]
[350534002,1737948664055,-451.75645263,0.00010958,2]
[350534003,1737948664066,-8326.71869452,0.0001099,2]
[350534004,1737948664077,-420.0,0.00010999,2]
[350534005,1737948664090,-255.0,0.00010999,2]
[350534006,1737948664100,-251.1,0.00011,2]
[350534007,1737948664110,-455.36774167,0.00011098,2]
[350534008,1737948664120,-500.0,0.00011098,2]
[350534009,1737948664131,-253.63208269,0.00011098,2]
[350534010,1737948664142,-289.04868745,0.00011098,2]
[350534011,1737948664152,-500.0,0.00011098,2]
[350534012,1737948664162,-500.0,0.00011098,2]
[350534013,1737948664174,-500.0,0.00011098,2]
[350534014,1737948664190,-500.0,0.00011098,2]
[350534015,1737948664200,-500.0,0.00011098,2]
[350534016,1737948664210,-500.0,0.00011098,2]
[350534017,1737948664222,-371.69,0.00011098,2]
[350534018,1737948664232,-500.0,0.00011098,2]
[350534019,1737948664243,-500.0,0.00011098,2]
[350534020,1737948664253,-420.92748704,0.00011098,2]
[350534021,1737948664263,-559.96173765,0.00011098,2]
[350534022,1737948664274,-500.0,0.00011098,2]
[350534023,1737948664283,-314.36561276,0.00011098,2]
[350534024,1737948664294,-500.0,0.00011098,2]
[350534025,1737948664304,-500.0,0.00011098,2]
[350534026,1737948664315,-246.25538566,0.00011098,2]
[350534027,1737948664329,-500.0,0.00011098,2]
[350534028,1737948664341,-500.0,0.00011098,2]
[350534029,1737948664353,-500.0,0.00011098,2]
[350534030,1737948664363,-500.0,0.00011098,2]
[350534031,1737948664374,-396.7277447,0.00011098,2]
[350534032,1737948664384,-500.0,0.00011098,2]
[350534033,1737948664397,-500.0,0.00011098,2]
[350534034,1737948664407,-162.02,0.00011098,2]
[350534035,1737948664417,-341.31,0.00011098,2]
[350534036,1737948664427,-615.08,0.00011098,2]
[350534037,1737948664440,-500.0,0.00011098,2]
[350534038,1737948664450,-500.0,0.00011098,2]
[350534039,1737948664461,-500.0,0.00011098,2]
[350534040,1737948664472,-168.10054293,0.00011098,2]
[350534041,1737948664482,-645.06,0.00011098,2]
[350534042,1737948664492,-500.0,0.00011098,2]
[350534043,1737948664502,-4525.46329949,0.00011099,2]
[350534044,1737948664512,-382.09410165,0.00011102,2]
[350534045,1737948664523,-485.50625979,0.0001121,2]
[350534046,1737948664533,-1000.0,0.00011216,2]
[350534047,1737948664543,-4525.46329949,0.00011233,2]
[350534048,1737948664553,-2014.71570487,0.00011233,2]
[350534049,1737948664562,-382.09410165,0.00011349,2]
[350534050,1737948664572,-4525.46329949,0.00011456,2]
[350534051,1737948664582,-2014.71570487,0.00011456,2]
[350534052,1737948664592,-454.84,0.00011462,2]
[350534053,1737948664602,-2751.0,0.00011507,2]
[350534054,1737948664611,-485.50625979,0.00011521,2]
[350534055,1737948664622,-1500.0,0.00011522,2]
[350534056,1737948664632,-2600.0,0.000116,4]
[350534057,1737948664642,-4525.46329949,0.00011678,2]
[350534058,1737948664652,-2014.71570487,0.00011678,2]
[350534059,1737948664662,-3300.0,0.000117,4]
[350534060,1737948664671,-196.82030537,0.00011792,2]
[350534061,1737948664681,-600.0,0.000118,4]
[350534062,1737948664691,-389.07652858,0.000118,2]
[350534063,1737948664701,-294.87214662,0.00011825,2]
[350534064,1737948664710,-530.73838969,0.00011826,2]
[350534065,1737948664720,-200.0,0.00011826,2]
[350534066,1737948664729,-200.0,0.00011827,2]
[350534067,1737948664742,-294.87214662,0.00011828,2]
[350534068,1737948664752,-240.64780452,0.00011828,2]
[350534069,1737948664762,-200.0,0.00011831,2]
[350534070,1737948664772,-485.50625979,0.00011831,2]
[350534071,1737948664781,-294.87214662,0.00011831,2]
[350534072,1737948664791,-371.00563247,0.00011831,2]
[350534073,1737948664801,-200.0,0.00011833,2]
[350534074,1737948664812,-200.0,0.00011834,2]
[350534075,1737948664823,-200.0,0.00011835,2]
[350534076,1737948664832,-295.67972798,0.00011835,2]
[350534077,1737948664842,-371.00563247,0.00011837,2]
[350534078,1737948664852,-15770.78838069,0.00011837,2]
[350534079,1737948664862,-15770.78838069,0.00011837,2]
[350534080,1737948664875,-1186.32810913,0.0001184,2]
[350534081,1737948664889,-371.00563247,0.00011841,2]
[350534082,1737948664899,-624.09004326,0.00011843,2]
[350534083,1737948664913,-624.09004326,0.00011845,2]
[350534084,1737948664926,-8317.03541105,0.00011846,2]
[350534085,1737948664940,-240.64780452,0.00011849,2]
[350534086,1737948664950,-530.73838969,0.0001185,2]
[350534087,1737948664960,-200.0,0.00011853,2]
[350534088,1737948664970,-1084.69589719,0.00011853,2]
[350534089,1737948664979,-294.87214662,0.00011857,2]
[350534090,1737948664989,-624.09004326,0.00011857,2]
[350534091,1737948664999,-8317.03541105,0.00011859,2]
[350534092,1737948665009,-530.73838969,0.00011859,2]
[350534093,1737948665019,-15770.78838069,0.00011859,2]
[350534094,1737948665028,-240.64780452,0.00011865,2]
[350534095,1737948665037,-1186.32810913,0.00011867,2]
[350534096,1737948665047,-8317.03541105,0.00011868,2]
[350534097,1737948665056,-200.0,0.00011869,2]
[350534098,1737948665066,-15770.78838069,0.0001187,2]
[350534099,1737948665076,-200.0,0.00011871,2]
[350534100,1737948665086,-530.73838969,0.00011872,2]
[350534101,1737948665095,-624.09004326,0.00011872,2]
[350534102,1737948665107,-15770.78838069,0.00011874,2]
[350534103,1737948665116,-1084.69589719,0.00011876,2]
[350534104,1737948665126,-1186.32810913,0.00011879,2]
[350534105,1737948665135,-240.64780452,0.00011879,2]
[350534106,1737948665146,-240.64780452,0.0001188,2]
[350534107,1737948665157,-200.0,0.00011882,2]
[350534108,1737948665166,-8317.03541105,0.00011885,2]
[350534109,1737948665176,-1084.69589719,0.00011886,2]
[350534110,1737948665186,-371.00563247,0.00011887,2]
[350534111,1737948665196,-200.0,0.00011888,2]
[350534112,1737948665206,-1084.69589719,0.00011892,2]